bitfinex/quotes_ETHUSD_20250602
["timestamp","ask_amount","ask_price","bid_price","bid_amount"]
[1748890647103,5.687,2543.7,2543.6,4.81373499]
[1748890647408,5.687,2543.7,2543.6,4.813735]
[1748890647572,5.687,2543.7,2543.6,4.59310212]
[1748890650528,5.687,2543.7,2543.6,4.81395074]
[1748890650680,1.622,2543.7,2543.6,4.59310212]
[1748890650880,5.687,2543.7,2543.6,4.59310212]
[1748890654116,5.687,2543.7,2543.6,4.81392562]
[1748890655108,5.687,2543.7,2543.6,5.03475906]
[1748890655291,5.687,2543.7,2543.6,4.81392562]
[1748890657913,5.687,2543.7,2543.6,5.25599105]
[1748890658118,1.622,2543.7,2543.6,4.81392562]
[1748890658430,10.89574515,2543.7,2543.6,0.88248986]
[1748890658617,11.70554515,2543.7,2543.6,0.88248986]
[1748890658806,19.70554515,2543.7,2543.6,0.88248986]
[1748890660218,1.1207,2543.7,2543.6,4.81392562]
[1748890660416,0.7912,2543.9,2543.8,3.93112666]
[1748890660617,13.9262,2543.9,2543.8,3.93112666]
[1748890661234,14.4762,2543.9,2543.8,3.93112666]
[1748890661729,9.3412,2543.9,2543.8,3.93112666]
[1748890661921,14.4762,2543.9,2543.8,3.93112666]
[1748890662296,16.38772452,2543.9,2543.8,3.93112666]
[1748890664638,16.38772452,2543.9,2543.6,0.88248986]
[1748890664639,0.55,2543.8,2543.6,0.88248986]
[1748890664935,5.18904515,2543.8,2543.7,3.9312812]
[1748890665118,5.18904515,2543.8,2543.6,4.81384104]
[1748890665307,5.18904515,2543.8,2543.7,3.9312812]
[1748890665505,7.29172212,2543.8,2543.6,0.88248986]
[1748890665782,7.29172212,2543.8,2543.6,4.81391983]
[1748890667847,4.614,2543.7,2543.6,4.81391983]
[1748890672955,5.3816,2543.7,2543.6,4.81392562]
[1748890674146,5.3806,2543.7,2543.6,4.81392562]
[1748890674347,7.50193221,2543.7,2543.6,4.81392562]
[1748890676966,3.43893221,2543.7,2543.6,4.81392562]
[1748890677156,7.50193221,2543.7,2543.6,4.81392562]
[1748890682885,3.43893221,2543.7,2543.6,4.81392562]
[1748890683046,4.612,2543.7,2543.6,4.81392562]
[1748890683972,0.55,2543.7,2543.6,4.81392562]
[1748890684148,5.682,2543.7,2543.6,4.81392562]
[1748890686992,10.32104515,2543.7,2543.6,0.88248986]
[1748890687411,5.682,2543.7,2543.6,4.81392562]
[1748890688503,13.00988967,2543.7,2543.6,0.88248986]
[1748890691009,21.00988967,2543.7,2543.6,0.88248986]
[1748890698314,20.23388967,2543.7,2543.6,0.88248986]
[1748890701120,16.17188967,2543.7,2543.6,0.88248986]
[1748890701279,20.23288967,2543.7,2543.6,0.88248986]
[1748890703099,24.93797087,2543.7,2543.6,0.88248986]
[1748890712337,9.07,2543.7,2543.6,0.88248986]
[1748890712539,13.13,2543.7,2543.6,0.88248986]
[1748890712750,17.76904515,2543.7,2543.6,0.88248986]
[1748890713103,18.31904515,2543.7,2543.6,0.88248986]
[1748890713304,18.31904515,2543.7,2543.6,4.81392562]
[1748890713606,18.31904515,2543.7,2543.6,0.78248986]
[1748890720055,6.25904515,2543.7,2543.6,4.71392562]
[1748890720258,1.62,2543.7,2543.6,5.47562562]
[1748890720421,5.679,2543.7,2543.6,5.47562562]
[1748890720851,0.02,2543.9,2543.8,3.93112666]
[1748890721057,13.147,2543.9,2543.8,3.93112666]
[1748890721360,13.697,2543.9,2543.8,3.93112666]
[1748890722462,0.55,2543.8,2543.7,3.93119901]
[1748890723364,0.55,2543.9,2543.8,3.93112666]
[1748890723659,5.677,2543.9,2543.8,3.93112666]
[1748890726738,5.677,2543.9,2543.6,5.47560073]
[1748890726927,5.677,2543.9,2543.8,3.93112666]
[1748890727127,5.677,2543.9,2543.7,3.9312812]
[1748890727366,5.677,2543.9,2543.8,3.93112666]
[1748890727939,5.677,2543.9,2543.7,3.93119179]
[1748890728163,5.18904515,2543.8,2543.7,3.93119179]
[1748890731074,0.55,2543.8,2543.7,3.93119179]
[1748890731432,4.607,2543.8,2543.7,3.93119179]
[1748890733576,0.55,2543.8,2543.7,3.93119179]
[1748890733764,4.607,2543.8,2543.7,3.93119179]
[1748890733962,0.55,2543.8,2543.7,3.93119179]
[1748890734263,0.48464841,2544.3,2544.2,4.7169086]
[1748890734463,1.03464841,2544.3,2544.2,4.7169086]
[1748890734666,4.04760633,2544.4,2544.3,3.93035412]
[1748890734980,2.05759055,2544.8,2544.7,3.92973631]
[1748890735185,6.11459055,2544.8,2544.7,4.71613631]
[1748890735482,6.66459055,2544.8,2544.7,4.71613631]
[1748890735852,6.11459055,2544.8,2544.7,4.71613631]
[1748890736178,6.66459055,2544.8,2544.7,4.71613631]
[1748890736767,11.3036357,2544.8,2544.7,3.92973631]
[1748890737280,6.66459055,2544.8,2544.7,3.92973631]
[1748890737666,5.675,2544.8,2544.7,3.92973631]
[1748890739767,11.8585367,2545.5,2544.7,4.75593631]
[1748890739768,0.8086,2545.5,2544.7,4.75593631]
[1748890740076,1.067,2545.2,2544.8,3.92958189]
[1748890740282,4.626,2544.9,2544.8,3.92958189]
[1748890741247,0.57,2544.9,2544.8,3.92958189]
[1748890741448,0.57,2544.9,2544.8,4.72167596]
[1748890741449,0.02,2544.9,2544.8,4.72167596]
[1748890741748,4.076,2544.9,2544.8,4.72167219]
[1748890741967,4.076,2544.9,2544.8,4.68238189]
[1748890742743,4.075,2544.9,2544.8,4.68238189]
[1748890749402,0.02,2544.9,2544.8,4.68238189]
[1748890749702,4.074,2544.9,2544.8,4.68238189]
[1748890750004,0.02,2544.9,2544.8,9.36071729]
[1748890750189,0.02,2544.9,2544.8,17.32142704]
[1748890751200,0.02,2544.9,2544.8,12.68238189]
[1748890751388,0.02,2544.9,2544.8,17.32142704]
[1748890757099,0.02,2544.9,2544.8,12.68238189]
[1748890757309,0.02,2544.9,2544.8,3.92958189]
[1748890758530,4.072,2544.9,2544.8,3.92958189]
[1748890759497,0.02,2544.9,2544.8,4.68438189]
[1748890761386,0.02,2544.9,2544.8,4.72367384]
[1748890763547,0.02,2544.9,2544.8,4.68438189]
[1748890764505,0.02,2544.9,2544.8,9.32342704]
[1748890765523,0.02,2544.9,2544.8,17.32342704]
[1748890768236,0.02,2544.9,2544.8,22.07342704]
[1748890768556,0.02,2544.9,2544.8,17.32342704]
[1748890769144,0.02,2544.9,2544.8,12.68438189]
[1748890774132,0.02,2544.9,2544.8,17.32342704]
[1748890775238,0.02,2544.9,2544.8,12.68438189]
[1748890779771,0.02,2544.9,2544.8,17.32342704]
[1748890781759,0.02,2544.9,2544.8,12.68438189]
[1748890784340,0.02,2544.9,2544.8,11.92958189]
[1748890789975,0.02,2544.9,2544.8,12.73998189]
[1748890792866,0.02,2544.9,2544.8,17.48998189]
[1748890801813,0.00619,2545.9,2545.8,11.92803833]
[1748890801975,0.00619,2545.9,2545.8,16.56708348]
[1748890803670,0.82739,2545.9,2545.8,3.92803833]
[1748890803915,4.87539,2545.9,2545.8,3.92803833]
[1748890804225,0.00619,2545.9,2545.8,3.92803833]
[1748890804370,0.00619,2545.9,2545.8,8.56708348]
[1748890804570,0.00619,2545.9,2545.8,11.92803833]
[1748890806888,0.00619,2545.9,2545.8,12.68563833]
[1748890807500,0.00619,2545.9,2545.8,17.32468348]
[1748890808686,0.00619,2545.9,2545.8,12.68563833]
[1748890810817,0.00619,2545.9,2545.8,11.92803833]
[1748890812878,0.00619,2545.9,2545.8,16.56708348]
[1748890816497,0.00619,2545.9,2545.8,17.32558348]
[1748890822203,0.7936,2546.9,2546.8,3.92649599]
[1748890822379,0.02,2546.9,2546.8,11.92649599]
[1748890824282,0.7956,2546.9,2546.8,11.92649599]
[1748890824835,0.7956,2546.9,2546.8,3.92649599]
[1748890825723,4.8406,2546.9,2546.8,3.92649599]
[1748890826312,0.7956,2546.9,2546.8,3.92649599]
[1748890826511,4.8396,2546.9,2546.8,3.92649599]
[1748890826711,0.7956,2546.9,2546.8,3.92649599]
[1748890827089,0.02,2546.9,2546.8,3.92649599]
[1748890827434,0.02,2546.9,2546.8,11.92649599]
[1748890836543,0.02,2546.9,2546.8,3.92649599]
[1748890837069,1.84738,2546.9,2546.8,3.92649599]
[1748890842364,1.3582,2546.7,2546.6,3.92669797]
[1748890842562,5.4012,2546.7,2546.6,3.92669797]
[1748890845841,1.3582,2546.7,2546.6,3.92669797]
[1748890846047,0.55,2546.6,2546.5,3.92684534]
[1748890846282,7.04066967,2546.6,2546.0,8.0]
[1748890846433,1.3426,2546.3,2546.2,3.92728314]
[1748890846769,0.55,2546.1,2546.0,3.92772977]
[1748890849973,1.3444,2546.1,2545.9,3.92784066]
[1748890850168,4.593,2546.0,2545.8,3.92796773]
[1748890850475,0.55,2545.7,2545.6,3.92828079]
[1748890850675,4.593,2545.7,2545.6,3.92828079]
[1748890853257,4.593,2545.7,2545.5,3.92841545]
[1748890853579,4.593,2545.7,2545.6,3.92834695]
[1748890853746,1.3393,2545.6,2545.5,3.92841256]
[1748890854348,0.55,2545.5,2545.3,0.34530546]
[1748890854548,5.3489,2545.4,2545.3,4.27411542]
[1748890855885,0.7559,2545.4,2545.3,4.27411542]
[1748890856088,1.611,2546.0,2545.9,3.92788404]
[1748890856389,5.72900452,2546.0,2545.9,3.92788404]
[1748890856687,5.654,2546.0,2545.9,3.92788404]
[1748890856884,5.104,2546.0,2545.9,3.92788404]
[1748890857267,5.654,2546.0,2545.9,3.92788404]
[1748890857794,1.611,2546.0,2545.9,3.92788404]
[1748890857956,5.654,2546.0,2545.9,3.92788404]
[1748890860188,0.55,2546.0,2545.9,3.92788404]
[1748890860395,5.18904515,2546.4,2546.3,3.92726701]
[1748890860576,9.96295212,2546.4,2546.3,3.92726701]
[1748890860977,10.71375212,2546.4,2546.3,3.92726701]
[1748890861696,0.55,2546.3,2546.2,3.9273542]
[1748890862081,0.55,2546.3,2546.0,3.92762026]
[1748890862282,0.55,2546.1,2545.4,0.7732]
[1748890862482,0.7508,2546.2,2545.9,3.92785624]
[1748890862483,4.593,2546.0,2545.9,3.92785624]
[1748890862991,1.3008,2545.9,2545.8,3.92799357]
[1748890863877,0.55,2545.9,2545.8,3.92799357]
[1748890866296,0.7604,2546.4,2545.8,0.7696]
[1748890866471,0.7604,2546.4,2546.3,3.92726701]
[1748890866685,1.8214,2546.6,2546.5,3.92695857]
[1748890866885,1.24911182,2546.8,2546.7,3.92665017]
[1748890867109,0.02,2546.9,2546.8,3.92649599]
[1748890867301,4.063,2546.9,2546.8,3.92649599]
[1748890867688,4.613,2546.9,2546.8,3.92649599]
[1748890868899,0.02,2546.9,2546.8,3.92649599]
[1748890869215,4.612,2546.9,2546.8,3.92649599]
[1748890869412,0.02,2546.9,2546.8,3.92649599]
[1748890870044,0.02,2546.9,2546.8,3.96575837]
[1748890870178,0.02,2546.9,2546.8,12.74525837]
[1748890870380,0.02,2546.9,2546.8,12.70599599]
[1748890876592,0.0619,2546.9,2546.8,12.70599599]
[1748890877584,0.0619,2546.9,2546.8,11.92649599]
[1748890877990,0.0619,2546.9,2546.8,3.92649599]
[1748890886254,4.1019,2546.9,2546.8,3.92649599]
[1748890887766,4.6519,2546.9,2546.8,3.92649599]
[1748890888212,0.55,2546.8,2546.2,0.7886]
[1748890888416,1.3307,2546.7,2546.6,11.92667499]
[1748890889856,0.55,2546.6,2546.4,3.92704666]
[1748890890063,0.55,2546.6,2546.5,3.92695857]
[1748890890359,4.59,2546.6,2546.5,3.92695857]
[1748890897953,4.59,2546.6,2546.4,3.92703772]
[1748890898153,5.07144754,2546.6,2546.4,3.92703772]
[1748890898673,5.11334754,2546.6,2546.5,3.92695857]
[1748890898886,4.6319,2546.6,2546.5,3.92695857]
[1748890901875,0.5919,2546.6,2546.5,3.92695857]
[1748890902078,4.6309,2546.6,2546.5,3.92695857]
[1748890905558,0.5919,2546.6,2546.5,3.92695857]
[1748890905771,4.6309,2546.6,2546.5,3.92695857]
[1748890910693,0.0419,2546.6,2546.5,3.92695857]
[1748890910898,0.0419,2546.6,2546.5,12.72422437]
[1748890911067,0.0419,2546.6,2546.5,12.68495857]
[1748890920891,0.0419,2546.6,2546.5,12.68495857]
[1748890923984,0.0419,2546.6,2546.5,11.92695857]
[1748890928634,0.0419,2546.6,2546.5,11.92695857]
[1748890929128,0.0419,2546.6,2546.5,16.55352772]
[1748890929286,0.0419,2546.6,2546.5,17.37792772]
[1748890931536,0.0419,2546.6,2546.5,22.00449687]
[1748890931734,0.02,2546.9,2546.8,3.92649599]
[1748890931912,0.02,2546.9,2546.8,17.38271175]
[1748890932240,0.02,2546.9,2546.8,17.34346514]
[1748890933337,0.02,2546.9,2546.8,22.12749854]
[1748890935032,0.02,2546.9,2546.8,26.87749854]
[1748890935237,0.02,2547.9,2547.8,3.92495486]
[1748890935436,0.02,2547.9,2547.8,12.72355486]
[1748890942143,0.02,2547.9,2547.8,11.92495486]
[1748890944946,0.02,2547.9,2547.8,12.67715486]
[1748890947310,0.02,2547.9,2547.8,17.42715486]
[1748890950053,0.02,2547.9,2547.8,12.67715486]
[1748890952449,0.02,2547.9,2547.8,3.92495486]
[1748890952953,0.02,2547.9,2547.8,11.9641984]
[1748890953151,0.02,2547.9,2547.8,11.92495486]
[1748890958065,4.8486,2547.9,2547.8,3.92495486]
[1748890958923,4.053,2547.9,2547.8,3.92495486]
[1748890959238,4.053,2547.9,2547.8,11.92495486]
[1748890961971,4.053,2547.9,2547.8,12.73305486]
[1748890961972,0.02,2547.9,2547.8,12.73305486]
[1748890962663,0.02,2547.9,2547.8,11.92495486]
[1748890968761,0.8011,2547.9,2547.8,11.92495486]
[1748890969185,0.02,2547.9,2547.8,11.92495486]
[1748890974085,4.052,2547.9,2547.8,11.92495486]
[1748890980196,0.02,2547.9,2547.8,11.92495486]
[1748890980400,4.052,2547.9,2547.8,11.92495486]
[1748890981874,0.02,2547.9,2547.8,11.92495486]
[1748890982197,0.02,2547.9,2547.8,16.54609864]
[1748890982362,0.02,2547.9,2547.8,17.31179864]
[1748890986065,0.02,2547.9,2547.8,22.06179864]
[1748890986465,4.031,2548.8,2548.7,3.92356887]
[1748890986990,0.793,2548.9,2548.8,11.92341494]
[1748890986991,0.02,2548.9,2548.8,11.92341494]
[1748890989410,0.02,2548.9,2548.8,16.54455872]
[1748890989610,0.02,2548.9,2548.8,11.92341494]
[1748890989812,0.02,2548.9,2548.8,17.34625872]
[1748890990003,0.02,2548.9,2548.8,12.72511494]
[1748890991222,0.02,2548.9,2548.8,11.92341494]
[1748890996136,0.02,2548.9,2548.8,16.54455872]
[1748890996345,0.02,2548.9,2548.8,11.92341494]
[1748890999362,0.02,2548.9,2548.8,16.54455872]
[1748890999846,0.02,2548.9,2548.8,17.31925872]
[1748891001303,0.02,2548.9,2548.8,17.44811494]
[1748891002206,0.02,2548.9,2548.8,22.06925872]
[1748891005627,0.02,2548.9,2548.8,14.06925872]
[1748891005882,0.02,2548.9,2548.8,22.06925872]
[1748891006180,0.02,2548.9,2548.8,12.69811494]
[1748891006329,0.02,2548.9,2548.8,3.92341494]
[1748891007030,4.048,2548.9,2548.8,3.92341494]
[1748891007532,4.048,2548.9,2548.8,11.92341494]
[1748891010272,0.02,2548.9,2548.8,11.92341494]
[1748891010997,4.048,2548.9,2548.8,11.92341494]
[1748891016610,0.02,2548.9,2548.8,11.92341494]
[1748891017117,4.048,2548.9,2548.8,11.92341494]
[1748891017577,0.02,2548.9,2548.8,11.92341494]
[1748891017758,4.048,2548.9,2548.8,11.92341494]
[1748891018761,0.02,2548.9,2548.8,11.92341494]
[1748891022516,0.02,2548.9,2548.8,16.54455872]
[1748891022717,0.02,2548.9,2548.8,11.92341494]
[1748891028154,0.8224,2548.9,2548.8,3.92341494]
[1748891032635,4.8494,2548.9,2548.8,3.92341494]
[1748891033756,4.047,2548.9,2548.8,3.92341494]
[1748891034144,0.02,2548.9,2548.8,3.92341494]
[1748891034347,4.047,2548.9,2548.8,3.92341494]
[1748891035175,0.02,2548.9,2548.8,3.92341494]
[1748891036422,0.02,2548.9,2548.8,4.68711494]
[1748891036760,0.02,2548.9,2548.8,4.72634381]
[1748891039560,0.02,2548.9,2548.8,4.68711494]
[1748891040258,0.02,2548.9,2548.8,12.68711494]
[1748891042046,0.02,2548.9,2548.8,3.92341494]
[1748891043463,0.02,2548.9,2548.8,4.75384574]
[1748891043662,0.02,2548.9,2548.8,3.92341494]
[1748891050035,4.8522,2548.9,2548.8,3.92341494]
[1748891050964,4.046,2548.9,2548.8,3.92341494]
[1748891057079,0.02,2548.9,2548.8,3.92341494]
[1748891057285,4.045,2548.9,2548.8,3.92341494]
[1748891058340,5.30462,2548.9,2548.8,3.92341494]
[1748891058984,1.27962,2548.9,2548.8,3.92341494]
[1748891059187,4.8195,2548.9,2548.8,3.92341494]
[1748891059483,4.045,2548.9,2548.8,3.92341494]
[1748891061376,0.02,2548.9,2548.8,3.92341494]
[1748891061584,4.045,2548.9,2548.8,3.92341494]
[1748891061749,4.8478,2548.9,2548.8,3.92341494]
[1748891061951,1.3528,2548.8,2547.9,0.8177]
[1748891062148,4.62114378,2548.2,2547.6,4.72187334]
[1748891062455,4.62114378,2548.2,2548.0,3.92464678]
[1748891062456,4.8554,2548.1,2548.0,3.92464678]
[1748891062971,5.4054,2548.1,2548.0,3.92464678]
[1748891063376,1.3804,2548.1,2548.0,3.92464678]
[1748891063576,8.3827205,2548.5,2548.4,3.92403076]
[1748891063813,15.31010693,2548.5,2548.4,3.92403076]
[1748891063991,6.92738643,2548.5,2548.4,3.92403076]
[1748891064193,7.74468643,2548.5,2548.4,3.92403076]
[1748891065428,0.55,2548.4,2548.3,3.92413633]
[1748891065595,5.17114378,2548.4,2548.3,3.92413633]
[1748891065775,6.4077268,2548.4,2548.3,3.92413633]
[1748891065979,6.86358302,2548.4,2548.3,3.92413633]
[1748891068645,0.55,2548.3,2548.2,3.92425765]
[1748891068941,1.3522,2548.3,2548.2,3.92425765]
[1748891070235,5.3782,2548.3,2548.2,3.92425765]
[1748891072470,6.1447783,2548.3,2548.2,3.92425765]
[1748891074434,1.23658302,2548.4,2548.3,3.92418475]
[1748891074668,5.078,2548.4,2548.3,3.92418475]
[1748891075024,9.69914378,2548.4,2548.3,3.92418475]
[1748891076974,1.3182,2548.3,2548.2,3.92425063]
[1748891079234,0.7682,2548.3,2548.2,3.92425063]
[1748891079446,0.96689438,2548.9,2548.7,3.92344094]
[1748891079447,0.7682,2548.8,2548.7,3.92344094]
[1748891079649,11.80827816,2548.8,2548.7,3.92344094]
[1748891080236,12.35827816,2548.8,2548.7,3.92344094]
[1748891080547,0.55,2548.7,2548.6,3.92365281]
[1748891083391,0.55,2548.7,2548.5,3.92381088]
[1748891083590,0.55,2548.5,2548.4,3.9240247]
[1748891083753,1.3283,2548.4,2548.3,3.92405646]
[1748891083958,9.97444378,2548.4,2548.3,3.92405646]
[1748891091611,6.4043,2548.4,2548.3,3.92405646]
[1748891092261,11.38997292,2548.4,2548.3,3.92405646]
[1748891092467,11.02544378,2548.4,2548.3,3.92405646]
[1748891092690,12.26409483,2548.4,2548.3,3.92405646]
[1748891093880,12.62862609,2548.4,2548.3,3.92405646]
[1748891094095,12.26409483,2548.4,2548.3,3.92405646]
[1748891095917,11.02544378,2548.4,2548.3,3.92405646]
[1748891100178,11.02544378,2548.4,2547.7,0.7638]
[1748891100179,0.55,2548.3,2547.7,0.7638]
[1748891100392,1.051,2548.4,2548.3,3.92418475]
[1748891100605,5.076,2548.4,2548.3,3.92418475]
[1748891100810,5.44055709,2548.4,2548.3,3.92418475]
[1748891101005,5.076,2548.4,2548.3,3.92418475]
[1748891101588,0.55,2548.8,2548.7,3.92356887]
[1748891101783,6.22533438,2548.8,2548.7,3.92356887]
[1748891102688,6.61077385,2548.8,2548.7,3.92356887]
[1748891103154,2.58577385,2548.8,2548.7,3.92356887]
[1748891103426,6.60977385,2548.8,2548.7,3.92356887]
[1748891104194,6.97434868,2548.8,2548.7,3.92356887]
[1748891104388,6.60977385,2548.8,2548.7,3.92356887]
[1748891105797,6.22433438,2548.8,2548.7,3.92356887]
[1748891106306,6.61709903,2548.8,2548.7,3.92356887]
[1748891106504,2.20033438,2548.8,2548.7,3.92356887]
[1748891106703,4.64114378,2548.9,2548.8,3.92341494]
[1748891106933,9.71614378,2548.9,2548.8,3.92341494]
[1748891107098,10.26614378,2548.9,2548.8,3.92341494]
[1748891108559,1.071,2548.9,2548.8,3.92341494]
[1748891108863,5.095,2548.9,2548.8,3.92341494]
[1748891109040,1.43561743,2548.9,2548.8,3.92341494]
[1748891109355,5.45963415,2548.9,2548.8,4.67601494]
[1748891109517,5.095,2548.9,2548.8,4.67601494]
[1748891109721,1.071,2548.9,2548.8,4.67601494]
[1748891110120,5.095,2548.9,2548.8,4.67601494]
[1748891112137,4.043,2548.9,2548.8,4.67601494]
[1748891114727,4.593,2548.9,2548.8,3.92341494]
[1748891114960,5.73237692,2548.9,2548.8,3.92341494]
[1748891116683,4.593,2548.9,2548.8,3.92341494]
[1748891118086,4.95759892,2548.9,2548.8,3.92341494]
[1748891119156,5.32219857,2548.9,2548.8,3.92341494]
[1748891119859,5.68679842,2548.9,2548.8,3.92341494]
[1748891120055,5.68679843,2548.9,2548.8,3.92341494]
[1748891120261,5.32219857,2548.9,2548.8,3.92341494]
[1748891121451,4.77219857,2548.9,2548.8,3.92341494]
[1748891123474,0.74919857,2548.9,2548.8,3.92341494]
[1748891124013,4.77119857,2548.9,2548.8,3.92341494]
[1748891129268,5.1358163,2548.9,2548.8,3.92341494]
[1748891129599,5.50043231,2548.9,2548.8,3.92341494]
[1748891132258,1.47843231,2548.9,2548.8,5.0863516]
[1748891132603,1.47843231,2548.9,2548.8,5.12558403]
[1748891132895,1.47843231,2548.9,2548.8,13.12558403]
[1748891133095,1.47843231,2548.9,2548.8,13.0863516]
[1748891133279,1.47843231,2548.9,2548.8,13.086059]
[1748891137110,1.47843231,2548.9,2548.8,12.71021494]
[1748891137273,1.47843231,2548.9,2548.8,13.08556938]
[1748891141012,1.47843231,2548.9,2548.8,12.71021494]
[1748891141327,1.47843231,2548.9,2548.8,13.08533281]
[1748891144942,1.47843231,2548.9,2548.8,12.71021494]
[1748891145224,1.47843231,2548.9,2548.8,13.08515845]
[1748891148961,1.47843231,2548.9,2548.8,13.08521841]
[1748891152825,1.47843231,2548.9,2548.8,13.08535975]
[1748891153234,1.47843231,2548.9,2548.8,13.08535924]
[1748891157078,1.47843231,2548.9,2548.8,13.08535924]
[1748891160494,1.47843231,2548.9,2548.8,12.71021494]
[1748891160653,1.47843231,2548.9,2548.8,13.08596285]
[1748891162293,1.47843231,2548.9,2548.8,13.28159636]
[1748891162695,1.47843231,2548.9,2548.8,13.08596285]
[1748891164493,1.47843231,2548.9,2548.8,13.08589989]
[1748891165105,1.47843231,2548.9,2548.8,13.28514481]
[1748891165604,1.47843231,2548.9,2548.8,13.08589989]
[1748891165808,1.47843231,2548.9,2548.8,13.08581737]
[1748891168314,1.47843231,2548.9,2548.8,13.08564932]
[1748891169014,1.47843231,2548.9,2548.8,13.8293175]
[1748891169578,1.47843231,2548.9,2548.8,13.08564932]
[1748891172093,1.47843231,2548.9,2548.8,13.63541448]
[1748891172316,1.47843231,2548.9,2548.8,13.08541448]
[1748891172514,1.47843231,2548.9,2548.8,13.63538908]
[1748891173027,1.47843231,2548.9,2548.8,23.31953286]
[1748891173217,1.47843231,2548.9,2548.8,23.52060213]
[1748891173627,0.06673317,2548.9,2548.8,23.52060213]
[1748891174020,0.10603317,2548.9,2548.8,23.52060213]
[1748891174216,0.10603317,2548.9,2548.8,23.14542799]
[1748891175811,0.10603317,2548.9,2548.8,18.52428421]
[1748891176637,0.10603317,2548.9,2548.8,4.71021494]
[1748891176802,0.10603317,2548.9,2548.8,4.31611494]
[1748891177145,0.10603317,2548.9,2548.8,3.92341494]
[1748891178102,0.10603317,2548.9,2548.8,11.92341494]
[1748891181717,0.10603317,2548.9,2548.8,3.92341494]
[1748891181921,0.91533317,2548.9,2548.8,3.92341494]
[1748891185833,3.1024434,2548.9,2548.8,3.92341494]
[1748891187018,2.5524434,2548.9,2548.8,3.92341494]
[1748891187240,5.97933317,2548.9,2548.8,3.92341494]
[1748891187730,10.60047695,2548.9,2548.8,3.92341494]
[1748891188560,4.93233317,2548.9,2548.8,3.92341494]
[1748891188920,0.91533317,2548.9,2548.8,3.92341494]
[1748891189251,4.93233317,2548.9,2548.8,3.92341494]
[1748891190124,0.91533317,2548.9,2548.8,3.92341494]
[1748891191960,4.93233317,2548.9,2548.8,3.92341494]
[1748891195668,4.12303317,2548.9,2548.8,3.92341494]
[1748891200555,0.10603317,2548.9,2548.8,3.92341494]
[1748891200768,4.12303317,2548.9,2548.8,3.92341494]
[1748891201683,0.10603317,2548.9,2548.8,3.92341494]
[1748891205777,0.10603317,2548.9,2548.8,4.77104401]
[1748891205987,0.10603317,2548.9,2548.8,3.96264401]
[1748891206407,0.10603317,2548.9,2548.8,3.92341494]
[1748891206935,0.93483317,2548.9,2548.8,3.92341494]
[1748891208371,4.95083317,2548.9,2548.8,3.92341494]
[1748891219415,0.10603317,2548.9,2548.8,3.92341494]
[1748891219619,4.12103317,2548.9,2548.8,3.92341494]
[1748891220204,0.10603317,2548.9,2548.8,3.92341494]
[1748891221398,0.93373317,2548.9,2548.8,3.92341494]
[1748891221724,5.55487695,2548.9,2548.8,3.92341494]
[1748891221906,0.93373317,2548.9,2548.8,3.92341494]
[1748891222500,4.12103317,2548.9,2548.8,3.92341494]
[1748891223320,0.10603317,2548.9,2548.8,3.92341494]
[1748891223523,4.12103317,2548.9,2548.8,3.92341494]
[1748891225527,0.10603317,2548.9,2548.8,3.96264672]
[1748891225732,0.10603317,2548.9,2548.8,4.73191494]
[1748891226031,0.10603317,2548.9,2548.8,4.77113943]
[1748891226545,0.10603317,2548.9,2548.8,4.73191494]
[1748891228387,0.10603317,2548.9,2548.8,12.73191494]
[1748891229821,0.10603317,2548.9,2548.8,3.92341494]
[1748891230029,0.86973317,2548.9,2548.8,3.92341494]
[1748891231144,6.58252718,2548.9,2548.8,3.92341494]
[1748891233759,1.9613834,2548.9,2548.8,3.92341494]
[1748891233904,0.86973317,2548.9,2548.8,3.92341494]
[1748891242227,0.7857,2548.8,2548.7,3.92356887]
[1748891242432,4.62114378,2548.8,2548.7,3.92356887]
[1748891242640,6.34072401,2548.8,2548.7,3.92356887]
[1748891242843,0.8089,2548.7,2548.6,3.92371348]
[1748891243047,4.8229,2548.7,2548.6,3.92371348]
[1748891243243,4.8229,2548.7,2548.5,3.92380704]
[1748891243244,0.8089,2548.6,2548.5,3.9238583]
[1748891243635,0.55,2548.6,2548.4,3.92394267]
[1748891243835,1.2524,2548.5,2548.4,3.92394267]
[1748891244165,0.796,2548.4,2548.1,3.9243693]
[1748891244468,0.796,2548.2,2548.1,3.9243719]
[1748891248142,0.7625,2548.0,2547.9,3.92480081]
[1748891248498,4.7775,2548.0,2547.9,3.92480081]
[1748891250199,0.7625,2548.0,2547.9,3.92480081]
[1748891250346,0.7929,2547.8,2547.1,3.94600134]
[1748891250544,5.41404378,2547.5,2547.4,3.92557117]
[1748891250739,6.45904378,2547.5,2547.4,3.92557117]
[1748891251687,1.8379,2547.5,2547.4,3.92557117]
[1748891252794,5.8529,2547.5,2547.4,3.92557117]
[1748891253001,6.98819,2547.5,2547.3,3.92569564]
[1748891253170,4.62114378,2547.4,2547.2,3.92579459]
[1748891253371,8.63614378,2547.3,2547.2,3.92579459]
[1748891254373,9.00054146,2547.3,2547.2,3.92579459]
[1748891254573,8.63614378,2547.3,2547.2,3.92579459]
[1748891255120,9.00055849,2547.3,2547.2,3.92579459]
[1748891255324,8.63614378,2547.3,2547.2,3.92579459]
[1748891255828,8.67544378,2547.3,2547.2,3.92579459]
[1748891256833,10.65030716,2547.3,2547.1,3.94595184]
[1748891256992,10.65030716,2547.3,2547.2,3.92587939]
[1748891259916,10.65030716,2547.3,2547.1,3.94591383]
[1748891261137,10.65030716,2547.3,2547.2,3.92587939]
[1748891262041,10.65030716,2547.3,2547.1,3.94590327]
[1748891262339,1.06503072,2547.2,2547.1,3.94590327]
[1748891266375,9.44614378,2547.3,2547.2,3.92587939]
[1748891267454,9.80911168,2547.3,2547.2,3.92587939]
[1748891267665,9.44614378,2547.3,2547.2,3.92587939]
[1748891270249,9.80911251,2547.3,2547.2,3.92587939]
[1748891270454,9.44614378,2547.3,2547.2,3.92587939]
[1748891270842,4.47587939,2547.2,2547.1,0.02]
[1748891271045,13.26297939,2547.2,2547.1,0.02]
[1748891271247,3.92695857,2546.5,2546.4,0.66666667]
[1748891271477,14.94620235,2546.5,2546.4,0.66666667]
[1748891271774,28.31895492,2546.5,2546.4,0.66666667]
[1748891271962,32.08934207,2546.5,2546.4,0.66666667]